bitfinex/quotes_BTCUSD_20241003
["timestamp","ask_amount","ask_price","bid_price","bid_amount"]
[1727991175470,0.67985887,60927.0,60926.0,0.0008192]
[1727991175889,0.4734797,60927.0,60926.0,0.0008192]
[1727991176095,0.80265951,60927.0,60926.0,0.0008192]
[1727991176302,0.68011972,60927.0,60926.0,0.0008192]
[1727991176511,0.68211972,60927.0,60926.0,0.0008192]
[1727991177144,0.80468029,60927.0,60926.0,0.0008192]
[1727991178252,0.68211972,60927.0,60926.0,0.0008192]
[1727991180035,0.70785419,60927.0,60926.0,0.0008192]
[1727991180458,0.50121417,60927.0,60926.0,0.0008192]
[1727991180672,0.70605272,60927.0,60926.0,0.0008192]
[1727991181118,0.68031825,60927.0,60926.0,0.0008192]
[1727991182691,0.66631825,60927.0,60926.0,0.0008192]
[1727991182915,0.68031825,60927.0,60926.0,0.0008192]
[1727991184093,0.66634924,60927.0,60926.0,0.0008192]
[1727991184327,0.70608339,60927.0,60926.0,0.0008192]
[1727991185473,0.84741988,60927.0,60926.0,0.0008192]
[1727991185939,1.13731435,60927.0,60926.0,0.0008192]
[1727991186605,1.12531435,60927.0,60926.0,0.0008192]
[1727991186840,1.11131435,60927.0,60926.0,0.0008192]
[1727991187095,1.12531435,60927.0,60926.0,0.0008192]
[1727991187333,1.13931435,60927.0,60926.0,0.0008192]
[1727991188522,0.98397786,60927.0,60926.0,0.0008192]
[1727991188996,0.98278625,60927.0,60926.0,0.0008192]
[1727991189226,1.31423414,60927.0,60926.0,0.0008192]
[1727991189459,1.08188625,60927.0,60926.0,0.0008192]
[1727991189935,1.09588625,60927.0,60926.0,0.0008192]
[1727991190428,1.26172789,60927.0,60926.0,0.0008192]
[1727991192809,1.24772789,60927.0,60926.0,0.0008192]
[1727991193046,1.26172789,60927.0,60926.0,0.0008192]
[1727991193277,1.23372789,60927.0,60926.0,0.0008192]
[1727991193508,1.24772789,60927.0,60926.0,0.0008192]
[1727991193741,1.26172789,60927.0,60926.0,0.0008192]
[1727991194243,1.09588625,60927.0,60926.0,0.0008192]
[1727991194479,1.08188625,60927.0,60926.0,0.0008192]
[1727991194696,1.24507296,60927.0,60926.0,0.0008192]
[1727991195821,1.26322742,60927.0,60926.0,0.0008192]
[1727991196723,1.26322742,60927.0,60913.0,0.24634789]
[1727991196724,0.266141,60923.0,60913.0,0.24634789]
[1727991196954,0.6523412,60923.0,60913.0,0.24634789]
[1727991197193,0.9624251,60923.0,60912.0,0.076619]
[1727991197448,1.12840906,60923.0,60912.0,0.076619]
[1727991197681,1.12800602,60923.0,60912.0,0.076619]
[1727991197899,1.14400602,60923.0,60912.0,0.076619]
[1727991198501,0.4808527,60923.0,60912.0,0.076619]
[1727991198715,0.85518362,60923.0,60912.0,0.076619]
[1727991198922,0.67515757,60923.0,60912.0,0.076619]
[1727991199134,0.97798439,60923.0,60912.0,0.076619]
[1727991199758,1.1411711,60923.0,60912.0,0.076619]
[1727991199961,1.1551711,60923.0,60912.0,0.076619]
[1727991200322,1.1691711,60923.0,60912.0,0.076619]
[1727991200727,1.19490686,60923.0,60912.0,0.076619]
[1727991201164,1.19290686,60923.0,60912.0,0.076619]
[1727991201383,1.19490686,60923.0,60912.0,0.076619]
[1727991201892,1.1691711,60923.0,60912.0,0.076619]
[1727991205131,1.19490691,60923.0,60912.0,0.076619]
[1727991208157,1.0317202,60923.0,60912.0,0.076619]
[1727991208379,1.03235447,60923.0,60912.0,0.076619]
[1727991209013,0.289144,60922.0,60921.0,1e-06]
[1727991209253,0.83850554,60922.0,60921.0,1e-06]
[1727991209467,0.83650554,60922.0,60921.0,1e-06]
[1727991209710,0.54730873,60922.0,60921.0,1e-06]
[1727991209923,0.83650554,60922.0,60921.0,1e-06]
[1727991210174,0.99969225,60922.0,60921.0,1e-06]
[1727991210401,0.99969225,60922.0,60912.0,0.076619]
[1727991210402,0.002,60913.0,60912.0,0.000819]
[1727991210633,0.62185327,60913.0,60912.0,0.000819]
[1727991210844,0.96464566,60913.0,60912.0,0.000819]
[1727991212405,1.00438509,60913.0,60912.0,0.000819]
[1727991213072,1.01568195,60913.0,60912.0,0.000819]
[1727991213977,1.01997879,60913.0,60912.0,0.000819]
[1727991214236,1.01997879,60913.0,60908.0,0.000819]
[1727991214237,0.41529512,60909.0,60908.0,0.000819]
[1727991214456,0.67433354,60909.0,60908.0,0.000819]
[1727991214668,0.96195352,60909.0,60908.0,0.000819]
[1727991215345,0.97595352,60909.0,60908.0,0.000819]
[1727991216245,0.98995352,60909.0,60908.0,0.000819]
[1727991218575,1.15314023,60909.0,60908.0,0.000819]
[1727991219287,1.13914023,60909.0,60908.0,0.000819]
[1727991219741,1.15314023,60909.0,60908.0,0.000819]
[1727991220177,0.98995352,60909.0,60908.0,0.000819]
[1727991220852,1.00169473,60909.0,60908.0,0.000819]
[1727991221340,0.99969473,60909.0,60908.0,0.000819]
[1727991221606,0.99969473,60909.0,60908.0,0.076019]
[1727991221806,1.15595008,60909.0,60908.0,0.076019]
[1727991222244,1.15395008,60909.0,60908.0,0.076019]
[1727991222463,0.8388374,60909.0,60908.0,0.169419]
[1727991222680,0.55121742,60909.0,60908.0,0.169419]
[1727991223767,0.53721742,60909.0,60908.0,0.169419]
[1727991224408,0.55021742,60909.0,60908.0,0.169419]
[1727991224652,0.53621742,60909.0,60908.0,0.169419]
[1727991224885,0.57595605,60909.0,60908.0,0.169419]
[1727991225117,0.58895605,60909.0,60908.0,0.169419]
[1727991226657,0.56321742,60909.0,60908.0,0.169419]
[1727991229767,0.58895599,60909.0,60908.0,0.169419]
[1727991230904,0.56321742,60909.0,60908.0,0.169419]
[1727991231989,0.56505013,60909.0,60908.0,0.169419]
[1727991235410,0.73840486,60909.0,60908.0,0.169419]
[1727991235636,1.02854195,60909.0,60908.0,0.169419]
[1727991235885,0.73843714,60909.0,60908.0,0.169419]
[1727991236551,1.02856444,60909.0,60908.0,0.169419]
[1727991237015,0.88091637,60909.0,60908.0,0.169419]
[1727991237480,1.02858451,60909.0,60908.0,0.169419]
[1727991237699,0.88091637,60909.0,60908.0,0.169419]
[1727991238803,0.85517743,60909.0,60908.0,0.169419]
[1727991239251,0.84117743,60909.0,60908.0,0.169419]
[1727991239738,0.82917743,60909.0,60908.0,0.169419]
[1727991239948,0.53905013,60909.0,60908.0,0.169419]
[1727991240192,0.55205013,60909.0,60908.0,0.169419]
[1727991240843,0.55192761,60909.0,60908.0,0.169419]
[1727991242097,0.57766704,60909.0,60908.0,0.169419]
[1727991242487,0.86768128,60909.0,60908.0,0.169419]
[1727991243113,0.84194185,60909.0,60908.0,0.169419]
[1727991243337,0.55192761,60909.0,60908.0,0.169419]
[1727991244886,0.55198743,60909.0,60908.0,0.169419]
[1727991245983,0.5777268,60909.0,60908.0,0.169419]
[1727991246209,0.55198743,60909.0,60908.0,0.169419]
[1727991249633,0.34477458,60909.0,60908.0,0.169419]
[1727991249846,0.55203147,60909.0,60908.0,0.169419]
[1727991250891,0.5777708,60909.0,60908.0,0.169419]
[1727991251092,0.55203147,60909.0,60908.0,0.169419]
[1727991251342,0.84219112,60909.0,60908.0,0.169419]
[1727991251809,0.55203147,60909.0,60908.0,0.169419]
[1727991253276,0.67519373,60909.0,60908.0,0.169419]
[1727991253404,0.64819373,60909.0,60908.0,0.169419]
[1727991253609,0.66119373,60909.0,60908.0,0.169419]
[1727991254045,0.53803147,60909.0,60908.0,0.169419]
[1727991254250,0.60295498,60909.0,60908.0,0.169419]
[1727991254423,0.58395498,60909.0,60908.0,0.169419]
[1727991254653,0.66320652,60909.0,60908.0,0.169419]
[1727991254896,0.48886969,60909.0,60908.0,0.169419]
[1727991255071,0.182179,60909.0,60908.0,0.169419]
[1727991255328,0.22742872,60909.0,60908.0,0.169419]
[1727991255548,0.21342872,60909.0,60908.0,0.169419]
[1727991256071,0.05724972,60909.0,60908.0,0.169419]
[1727991256320,0.008,60909.0,60908.0,0.169419]
[1727991256527,0.011,60909.0,60908.0,0.169419]
[1727991256748,0.164175,60911.0,60909.0,0.1755]
[1727991256961,0.164175,60911.0,60910.0,0.1755]
[1727991257371,0.02573479,60911.0,60910.0,0.339676]
[1727991257620,0.02573479,60911.0,60910.0,0.1755]
[1727991257834,0.001638,60912.0,60911.0,0.339673]
[1727991258036,0.001638,60912.0,60911.0,0.46578912]
[1727991258483,0.164159,60917.0,60914.0,0.1744]
[1727991258710,0.164159,60917.0,60915.0,0.1744]
[1727991258923,0.001638,60918.0,60916.0,0.1744]
[1727991259146,0.001638,60918.0,60917.0,0.1744]
[1727991259392,0.001638,60918.0,60917.0,0.46467312]
[1727991259609,0.001638,60918.0,60917.0,0.30051612]
[1727991260544,0.009638,60918.0,60917.0,0.30051612]
[1727991260788,0.001638,60918.0,60917.0,0.46467312]
[1727991260992,0.001638,60918.0,60917.0,0.46567312]
[1727991261204,0.005638,60918.0,60917.0,0.46567312]
[1727991263255,0.001638,60918.0,60917.0,0.46467312]
[1727991263657,0.003638,60918.0,60917.0,0.46667312]
[1727991272069,0.001638,60918.0,60917.0,0.46667312]
[1727991272751,0.002638,60918.0,60917.0,0.46467312]
[1727991273426,0.001638,60918.0,60917.0,0.46667312]
[1727991273637,0.001638,60918.0,60917.0,0.46467312]
[1727991273821,0.002638,60918.0,60917.0,0.46667312]
[1727991276106,0.002638,60918.0,60917.0,0.46767312]
[1727991276321,0.001638,60918.0,60917.0,0.46567312]
[1727991276745,0.002638,60918.0,60917.0,0.46767312]
[1727991276960,0.24634789,60925.0,60921.0,0.1765]
[1727991277188,0.24634789,60925.0,60920.0,0.328295]
[1727991277189,0.24634789,60925.0,60924.0,0.46675412]
[1727991277633,0.001638,60927.0,60924.0,0.12611612]
[1727991277851,0.001638,60927.0,60926.0,0.164133]
[1727991278107,0.001638,60927.0,60926.0,0.1765]
[1727991279849,0.009638,60927.0,60926.0,0.1775]
[1727991280533,0.013638,60927.0,60926.0,0.1775]
[1727991284390,0.013638,60927.0,60926.0,0.341633]
[1727991284639,0.013638,60927.0,60926.0,0.1775]
[1727991286405,0.013638,60927.0,60926.0,0.34581064]
[1727991287522,0.005638,60927.0,60926.0,0.34481064]
[1727991287957,0.005638,60927.0,60926.0,0.34581064]
[1727991287958,0.013638,60927.0,60926.0,0.34581064]
[1727991288413,0.001638,60927.0,60926.0,0.34481064]
[1727991288867,0.005638,60927.0,60926.0,0.34481064]
[1727991289292,0.006638,60927.0,60926.0,0.34781064]
[1727991292032,0.006638,60927.0,60926.0,0.51099735]
[1727991292289,0.006638,60927.0,60926.0,0.53399735]
[1727991293152,0.001638,60927.0,60926.0,0.53099735]
[1727991293363,0.002638,60927.0,60926.0,0.53399735]
[1727991294507,0.001638,60927.0,60926.0,0.53499735]
[1727991294946,0.002638,60927.0,60926.0,0.53799735]
[1727991295375,0.002638,60927.0,60926.0,0.54299735]
[1727991300194,0.002638,60927.0,60926.0,0.54499735]
[1727991304184,0.002638,60927.0,60926.0,0.53999735]
[1727991304606,0.003638,60927.0,60926.0,0.54399735]
[1727991304826,0.002638,60927.0,60926.0,0.54399735]
[1727991305049,0.002638,60927.0,60926.0,0.55799735]
[1727991307062,0.002638,60927.0,60926.0,1.25799735]
[1727991311729,0.002638,60927.0,60926.0,0.55799735]
[1727991314686,0.002638,60927.0,60926.0,1.25799735]
[1727991317643,0.002638,60927.0,60926.0,1.25599735]
[1727991318715,0.002638,60927.0,60926.0,1.23299735]
[1727991318912,0.002638,60927.0,60926.0,0.65911347]
[1727991319141,0.002638,60927.0,60926.0,0.025]
[1727991319391,0.166768,60927.0,60926.0,0.025]
[1727991319623,0.002638,60927.0,60926.0,0.025]
[1727991319831,0.165768,60927.0,60926.0,0.014]
[1727991320051,0.001638,60927.0,60926.0,0.019]
[1727991320459,0.001638,60927.0,60926.0,0.005]
[1727991320726,0.001638,60927.0,60926.0,0.008]
[1727991321586,0.001638,60927.0,60926.0,0.003]
[1727991322052,0.003638,60927.0,60926.0,0.003]
[1727991323318,0.167768,60927.0,60926.0,0.003]
[1727991325741,0.003638,60927.0,60926.0,0.003]
[1727991326185,0.003638,60927.0,60926.0,0.12911612]
[1727991328157,0.167768,60927.0,60926.0,0.12911612]
[1727991328384,0.167768,60927.0,60926.0,0.003]
[1727991330353,0.167768,60927.0,60926.0,0.12911612]
[1727991330568,0.003638,60927.0,60926.0,0.12911612]
[1727991331624,0.003638,60927.0,60926.0,0.29324912]
[1727991332336,0.003638,60927.0,60926.0,0.003]
[1727991332778,0.003638,60927.0,60926.0,0.00289]
[1727991335680,0.167768,60927.0,60926.0,0.00289]
[1727991336415,0.003638,60927.0,60926.0,0.08419]
[1727991338264,0.003638,60927.0,60926.0,0.248323]
[1727991338509,0.003638,60927.0,60926.0,0.343123]
[1727991340328,0.003638,60927.0,60926.0,0.50630971]
[1727991348648,0.003638,60927.0,60926.0,0.50712771]
[1727991350229,0.003638,60927.0,60926.0,0.63324383]
[1727991370305,0.003638,60927.0,60926.0,0.003708]
[1727991370535,0.167768,60927.0,60926.0,0.003708]
[1727991381685,0.003638,60927.0,60926.0,0.003708]
[1727991381919,0.003638,60927.0,60926.0,0.29395712]
[1727991382434,0.003638,60927.0,60926.0,0.38795712]
[1727991382665,0.003638,60927.0,60926.0,0.65144383]
[1727991383128,0.003638,60927.0,60926.0,0.75644383]
[1727991383404,0.001638,60927.0,60926.0,0.83026915]
[1727991383625,0.003638,60927.0,60926.0,0.82729214]
[1727991383848,0.004638,60927.0,60926.0,0.84029214]
[1727991384285,0.002638,60927.0,60926.0,0.84029239]
[1727991384713,0.001638,60927.0,60926.0,0.75355383]
[1727991385123,0.002638,60927.0,60926.0,0.76955383]
[1727991385618,0.002638,60927.0,60926.0,0.83168454]
[1727991385619,0.003638,60927.0,60926.0,0.83168454]
[1727991387035,0.003638,60927.0,60926.0,0.83587869]
[1727991387503,0.003638,60927.0,60926.0,0.78674798]
[1727991392404,0.24634789,60933.0,60932.0,0.258117]
[1727991392619,0.24634789,60933.0,60932.0,0.64771983]
[1727991392870,0.24634789,60941.0,60933.0,0.023]
[1727991393121,0.24634789,60941.0,60940.0,0.29021112]
[1727991393601,0.001638,60944.0,60943.0,0.164087]
[1727991393815,0.001638,60944.0,60943.0,0.29020312]
[1727991394522,0.001638,60944.0,60943.0,0.62758983]
[1727991395677,0.001638,60944.0,60943.0,0.63158983]
[1727991397085,0.001638,60944.0,60943.0,0.63590978]
[1727991402163,0.001638,60944.0,60943.0,0.63790978]
[1727991402421,0.001638,60944.0,60943.0,0.63390978]
[1727991402847,0.001638,60944.0,60943.0,0.63890978]
[1727991403067,0.001638,60944.0,60943.0,0.63190978]
[1727991403289,0.002638,60944.0,60943.0,0.64990978]
[1727991407711,0.002638,60944.0,60943.0,0.67290978]
[1727991413550,0.002638,60944.0,60943.0,0.67490978]
[1727991420913,0.002638,60944.0,60943.0,0.67290978]
[1727991421858,0.002638,60944.0,60943.0,0.64990978]
[1727991425627,0.002638,60944.0,60943.0,0.34959366]
[1727991425874,0.002638,60944.0,60943.0,0.47570978]
[1727991434115,0.002638,60944.0,60943.0,0.48313048]
[1727991456810,0.002638,60944.0,60943.0,0.57583048]
[1727991460622,0.002638,60944.0,60943.0,0.65783048]
[1727991461583,0.001638,60948.0,60944.0,0.3027]
[1727991461845,0.001638,60948.0,60947.0,0.69114081]
[1727991462095,0.24634789,60954.0,60953.0,0.33876]
[1727991462339,0.24634789,60954.0,60953.0,0.52494671]
[1727991462623,0.001636,60962.0,60961.0,0.338739]
[1727991462877,0.001636,60962.0,60961.0,0.62804183]
[1727991463129,0.001636,60962.0,60961.0,0.63548514]
[1727991464362,0.24798389,60969.0,60968.0,0.48783612]
[1727991464603,0.24798389,60969.0,60968.0,0.65302283]
[1727991464825,0.001636,60969.0,60968.0,0.65840267]
[1727991466083,0.001636,60969.0,60968.0,0.67040267]
[1727991466586,0.001636,60969.0,60968.0,0.68440267]
[1727991467028,0.001636,60969.0,60968.0,0.68780239]
[1727991472041,0.001636,60969.0,60968.0,0.36398627]
[1727991472269,0.165653,60969.0,60968.0,0.03677956]
[1727991472742,0.165653,60969.0,60968.0,0.026]
[1727991473928,0.165653,60969.0,60968.0,0.014]
[1727991474220,0.165653,60969.0,60968.0,0.002]
[1727991474698,0.165653,60969.0,60968.0,0.006]
[1727991474933,0.164032,60964.0,60960.0,0.29015712]
[1727991475181,0.164032,60964.0,60962.0,0.24634789]
[1727991475429,0.164032,60964.0,60961.0,0.0107909]
[1727991475668,0.164032,60964.0,60963.0,0.01078766]
[1727991475910,0.164032,60964.0,60962.0,0.01078928]
[1727991476140,0.328041,60968.0,60963.0,0.01078766]
[1727991476373,0.164031,60964.0,60963.0,0.01078766]
[1727991476603,0.164031,60964.0,60960.0,0.13011612]
[1727991476832,0.164027,60966.0,60963.0,0.01078766]
[1727991477058,0.24798389,60969.0,60964.0,0.12611612]
[1727991477304,0.24798389,60969.0,60964.0,0.13690216]
[1727991477567,0.164024,60967.0,60964.0,0.13690216]
[1727991478072,0.002,60966.0,60964.0,0.13690216]
[1727991478558,0.164023,60967.0,60964.0,0.13690216]
[1727991478801,0.001636,60969.0,60964.0,0.13690216]
[1727991478802,0.164026,60966.0,60964.0,0.13690216]
[1727991479045,0.164026,60966.0,60964.0,0.13790216]
[1727991479281,0.164026,60966.0,60964.0,0.13690216]
[1727991480441,0.164026,60966.0,60964.0,0.13890216]
[1727991480916,0.166026,60966.0,60964.0,0.13890216]
[1727991481432,0.002,60966.0,60964.0,0.13890216]
[1727991481677,0.002,60966.0,60965.0,0.1673082]
[1727991481978,0.002,60966.0,60965.0,0.2489082]
[1727991482225,0.002,60966.0,60965.0,0.25969262]
[1727991483179,0.001636,60969.0,60965.0,0.25969262]
[1727991483418,0.001636,60969.0,60968.0,0.12611612]
[1727991483856,0.001636,60969.0,60968.0,0.137036]
[1727991484293,0.002636,60969.0,60968.0,0.137036]
[1727991484623,0.001636,60969.0,60968.0,0.137036]
[1727991484832,0.001636,60969.0,60968.0,0.140036]
[1727991485312,0.006636,60969.0,60968.0,0.140036]
[1727991485531,0.006636,60969.0,60968.0,0.140106]
[1727991485801,0.001636,60969.0,60968.0,0.140106]
[1727991486013,0.001636,60969.0,60968.0,0.01398988]
[1727991486243,0.001636,60969.0,60968.0,0.140106]
[1727991487150,0.002636,60969.0,60968.0,0.140106]
[1727991488046,0.166653,60969.0,60968.0,0.140106]
[1727991490722,0.166653,60969.0,60968.0,0.01398988]
[1727991497553,0.166653,60969.0,60968.0,0.00307]
[1727991500363,0.21572014,60969.0,60968.0,0.00307]
[1727991501483,0.166653,60969.0,60968.0,0.00307]
[1727991502458,0.21576157,60969.0,60968.0,0.00307]
[1727991502801,0.166653,60969.0,60968.0,0.00307]
[1727991504574,0.37859059,60969.0,60968.0,0.00307]
[1727991505443,1.05772519,60969.0,60968.0,0.00307]
[1727991505667,0.5545603,60969.0,60962.0,0.000818]
[1727991505890,0.46794912,60963.0,60962.0,0.000818]
[1727991506354,0.46994912,60963.0,60962.0,0.000818]
[1727991506546,0.69473852,60963.0,60962.0,0.000818]
[1727991506840,0.66902013,60963.0,60962.0,0.000818]
[1727991507095,0.76082013,60963.0,60962.0,0.000818]
[1727991507441,0.76982013,60963.0,60962.0,0.002818]
[1727991507669,0.62441022,60963.0,60962.0,0.002818]
[1727991509576,0.164071,60949.0,60948.0,0.24634789]
[1727991509786,0.21312673,60949.0,60948.0,0.24634789]
[1727991510020,0.164071,60949.0,60948.0,0.24634789]
[1727991510237,0.164098,60939.0,60938.0,0.0811]
[1727991510451,0.164098,60939.0,60938.0,0.24428671]
[1727991510909,0.328219,60935.0,60929.0,0.093]
[1727991511162,0.164128,60928.0,60924.0,0.32744789]
[1727991511425,0.29024412,60928.0,60924.0,0.24634789]
[1727991511654,0.29024412,60928.0,60918.0,0.000818]
[1727991511876,0.39024412,60928.0,60918.0,0.000818]
[1727991512104,0.55343083,60928.0,60918.0,0.000818]
[1727991512325,0.26413,60927.0,60926.0,0.00068099]
[1727991512586,0.52753116,60927.0,60926.0,0.00068099]
[1727991512817,0.51106812,60919.0,60918.0,0.000818]
[1727991513063,0.77246928,60919.0,60918.0,0.000818]
[1727991513306,0.91963841,60919.0,60918.0,0.000818]
[1727991513525,0.39028412,60913.0,60911.0,0.24634789]
[1727991513765,0.45097156,60913.0,60911.0,0.24634789]
[1727991514007,0.52758565,60913.0,60908.0,0.000819]
[1727991514247,0.67533475,60913.0,60908.0,0.000819]
[1727991514464,0.62645974,60913.0,60908.0,0.000819]
[1727991514689,0.63445974,60913.0,60908.0,0.000819]
[1727991515140,0.64145974,60913.0,60908.0,0.000819]
[1727991515643,0.49371064,60913.0,60908.0,0.000819]
[1727991516338,0.48671064,60913.0,60908.0,0.000819]
[1727991516583,0.46697156,60913.0,60908.0,0.000819]
[1727991516810,0.48097156,60913.0,60908.0,0.000819]
[1727991517047,0.49497156,60913.0,60908.0,0.000819]
[1727991517289,0.59613412,60913.0,60908.0,0.000819]
[1727991517513,0.61013412,60913.0,60908.0,0.000819]
[1727991517974,0.58213412,60913.0,60908.0,0.000819]
[1727991518207,0.59613412,60913.0,60908.0,0.000819]
[1727991518883,0.58213412,60913.0,60908.0,0.000819]
[1727991519150,0.48097156,60913.0,60908.0,0.000819]
[1727991519384,0.178168,60913.0,60908.0,0.000819]
[1727991519855,0.164168,60913.0,60908.0,0.000819]
[1727991520083,0.178168,60913.0,60908.0,0.000819]
[1727991520319,0.192168,60913.0,60908.0,0.000819]
[1727991520550,0.178168,60913.0,60908.0,0.000819]
[1727991520777,0.189168,60913.0,60908.0,0.000819]
[1727991521010,0.171168,60913.0,60908.0,0.000819]
[1727991521723,0.007,60913.0,60908.0,0.000819]
[1727991521957,0.003,60913.0,60908.0,0.000819]
[1727991522425,0.174168,60913.0,60908.0,0.000819]
[1727991522669,0.01,60913.0,60908.0,0.000819]
[1727991522895,0.003,60913.0,60908.0,0.000819]
[1727991523113,0.164166,60914.0,60908.0,0.000819]
[1727991523341,0.164168,60913.0,60912.0,0.001819]
[1727991524309,0.164168,60913.0,60912.0,0.000819]
[1727991525010,0.165168,60913.0,60912.0,0.000819]
[1727991527814,0.164168,60913.0,60912.0,0.000819]
[1727991528280,0.166168,60913.0,60912.0,0.000819]
[1727991528716,0.166168,60913.0,60912.0,0.01165845]
[1727991528935,0.166168,60913.0,60912.0,0.000819]
[1727991529153,0.166168,60913.0,60912.0,0.01165845]
[1727991529389,0.166168,60913.0,60912.0,0.000819]
[1727991529606,0.164168,60913.0,60912.0,0.000819]
[1727991529823,0.18990216,60913.0,60912.0,0.01165845]
[1727991530264,0.19690216,60913.0,60912.0,0.01165845]
[1727991530742,0.19490216,60913.0,60912.0,0.01165845]
[1727991530963,0.172168,60913.0,60912.0,0.01165845]
[1727991531188,0.164168,60913.0,60912.0,0.01165845]
[1727991531686,0.166168,60913.0,60912.0,0.01165845]
[1727991532822,0.164168,60913.0,60912.0,0.01165845]
[1727991533047,0.167168,60913.0,60912.0,0.01165845]
[1727991533271,0.173168,60913.0,60912.0,0.01165845]
[1727991533691,0.169168,60913.0,60912.0,0.01165845]
[1727991533914,0.164168,60913.0,60912.0,0.01165845]
[1727991534130,0.19790094,60913.0,60912.0,0.01165845]
[1727991536289,0.19490094,60913.0,60912.0,0.01165845]
[1727991536741,0.19690094,60913.0,60912.0,0.01165845]
[1727991536971,0.19690094,60913.0,60912.0,0.000819]
[1727991537234,0.171168,60913.0,60912.0,0.000819]
[1727991537455,0.171168,60913.0,60912.0,0.01166232]
[1727991537681,0.171168,60913.0,60912.0,0.000819]
[1727991537906,0.171168,60913.0,60912.0,0.00853121]
[1727991538132,0.171168,60913.0,60912.0,0.000819]
[1727991538357,0.171168,60913.0,60912.0,0.00853121]
[1727991538586,0.171168,60913.0,60912.0,0.000819]
[1727991539057,0.171168,60913.0,60912.0,0.00853121]
[1727991539289,0.171168,60913.0,60912.0,0.000819]
[1727991539514,0.171168,60913.0,60912.0,0.00853121]
[1727991539768,0.171168,60913.0,60912.0,0.000819]
[1727991540221,0.171168,60913.0,60912.0,0.00853121]
[1727991540650,0.03273353,60913.0,60912.0,0.00853121]
[1727991541672,0.007,60913.0,60912.0,0.00853121]
[1727991542131,0.002,60913.0,60912.0,0.00853121]
[1727991542388,0.168168,60913.0,60912.0,0.00853121]
[1727991542616,0.169168,60913.0,60912.0,0.00853121]
[1727991543079,0.165168,60913.0,60912.0,0.00853121]
[1727991543282,0.164168,60913.0,60912.0,0.00853121]
[1727991543540,0.169168,60913.0,60912.0,0.00853121]
[1727991543995,0.164168,60913.0,60912.0,0.00853121]
[1727991545137,0.167168,60913.0,60912.0,0.00853121]
[1727991546253,0.19290125,60913.0,60912.0,0.00853121]
[1727991546477,0.167168,60913.0,60912.0,0.00853121]
[1727991546932,0.164168,60913.0,60912.0,0.00853121]
[1727991548293,0.167168,60913.0,60912.0,0.00853121]
[1727991548725,0.164168,60913.0,60912.0,0.00853121]
[1727991549190,0.164168,60913.0,60912.0,0.00953121]
[1727991549421,0.18990124,60913.0,60912.0,0.00953121]
[1727991549638,0.19090124,60913.0,60912.0,0.00853121]
[1727991549861,0.19190124,60913.0,60912.0,0.00953121]
[1727991550092,0.19090124,60913.0,60912.0,0.00953121]
[1727991554127,0.165168,60913.0,60912.0,0.00953121]
[1727991555514,0.21887211,60913.0,60912.0,0.00953121]
[1727991555942,0.001,60913.0,60912.0,0.00953121]
[1727991556166,0.165168,60913.0,60912.0,0.00953121]
[1727991556396,0.21887203,60913.0,60912.0,0.00953121]
[1727991556891,0.26792131,60913.0,60912.0,0.001819]
[1727991557110,0.24460617,60913.0,60912.0,0.001819]
[1727991557323,0.31818009,60913.0,60912.0,0.001819]
[1727991557561,0.24460617,60913.0,60912.0,0.001819]
[1727991558028,0.56420789,60913.0,60912.0,0.001819]
[1727991558234,0.53847375,60913.0,60912.0,0.001819]
[1727991558682,0.53947375,60913.0,60912.0,0.000819]
[1727991558891,0.54147375,60913.0,60912.0,0.000819]
[1727991559305,0.53947375,60913.0,60912.0,0.000819]
[1727991559531,0.54247375,60913.0,60912.0,0.000819]
[1727991559955,0.44437518,60913.0,60912.0,0.000819]
[1727991560623,0.56699839,60913.0,60912.0,0.000819]
[1727991560979,0.56747409,60913.0,60912.0,0.000819]
[1727991561399,0.44447627,60913.0,60912.0,0.000819]
[1727991561881,0.44147627,60913.0,60912.0,0.000819]
[1727991562025,0.44547627,60913.0,60912.0,0.000819]
[1727991562264,0.44347627,60913.0,60912.0,0.000819]
[1727991562460,0.44447627,60913.0,60912.0,0.000819]
[1727991562702,0.4702124,60913.0,60912.0,0.000819]
[1727991564520,0.61780978,60913.0,60912.0,0.000819]
[1727991565644,0.59207365,60913.0,60912.0,0.000819]
[1727991565866,0.59282573,60913.0,60912.0,0.000819]
[1727991566533,0.22287203,60913.0,60912.0,0.000819]
[1727991566687,0.59282198,60913.0,60912.0,0.000819]
[1727991570904,0.4449318,60913.0,60912.0,0.000819]
[1727991573426,0.59280042,60913.0,60912.0,0.000819]
[1727991573664,0.4449318,60913.0,60912.0,0.000819]
[1727991575508,0.44449782,60913.0,60912.0,0.000819]
[1727991578319,0.54449782,60913.0,60912.0,0.000819]
[1727991580548,0.54402017,60913.0,60912.0,0.000819]
[1727991582930,0.54402017,60913.0,60908.0,0.000819]
[1727991582931,0.46923922,60909.0,60908.0,0.000819]
[1727991583166,0.83499139,60909.0,60908.0,0.000819]
[1727991583391,1.14459878,60909.0,60908.0,0.000819]
[1727991584111,1.14759878,60909.0,60908.0,0.000819]
[1727991584328,1.14259878,60909.0,60908.0,0.000819]
[1727991584594,1.17659878,60909.0,60908.0,1e-06]
[1727991584814,0.437598,60902.0,60901.0,0.001019]
[1727991585045,0.78130636,60902.0,60901.0,0.001019]
[1727991585315,0.83501039,60902.0,60901.0,0.001019]
[1727991586748,0.87475503,60902.0,60901.0,0.001019]
[1727991586990,0.2642,60901.0,60900.0,0.001148]
[1727991587257,0.85065956,60901.0,60900.0,0.001148]
[1727991588434,1.03048337,60901.0,60900.0,0.001148]
[1727991589571,1.04448337,60901.0,60900.0,0.001148]
[1727991589832,1.03048337,60901.0,60900.0,0.001148]
[1727991590083,1.04448337,60901.0,60900.0,0.001148]
[1727991590318,0.87865956,60901.0,60900.0,0.001148]
[1727991592877,0.164222,60893.0,60892.0,0.24634789]
[1727991593109,0.50808013,60893.0,60892.0,0.25395686]
[1727991593328,0.38537014,60893.0,60892.0,0.00760897]
[1727991593555,0.22114814,60893.0,60881.0,0.0753]
[1727991593795,0.23784072,60891.0,60881.0,0.0753]
[1727991595408,0.264227,60891.0,60881.0,0.0753]
[1727991595640,0.31329096,60891.0,60881.0,0.0753]
[1727991595876,0.33784072,60891.0,60881.0,0.0753]